[Event "26th Hit Open-A 2022"]
[Site "Nova Gorica"]
[Date "2022.09.15"]
[Round "1.1"]
[White "Lodici, Lorenzo"]
[Black "Van Dael, Siem"]
[Result "0-1"]
[ECO "E71"]
[WhiteElo "2559"]
[BlackElo "2316"]
[Annotator "ChessBase"]
[PlyCount "68"]
[EventDate "2022.09.16"]
[EventType "swiss"]
[EventCountry "SLO"]
[SourceTitle "playchess.com"]
[Source "ChessBase"]
[SourceQuality "1"]
[TimeControl "5400+30"]

1. d4 {[%emt 0:00:02]} Nf6 {[%emt 0:00:17]} 2. c4 {[%emt 0:00:13]} g6 {[%emt 0:00:09]} 3. Nc3 {[%emt 0:09:45]} Bg7 {[%emt 0:00:09]} 4. e4 {[%emt 0:00:12]} d6 {[%emt 0:00:07]} 5. h3 {[%emt 0:00:28]} e5 {[%emt 0:00:41]} 6. Nge2 {[%emt 0:05:02]} Nc6 {[%emt 0:02:31]} 7. Be3 {[%emt 0:05:28]} exd4 {[%emt 0:09:19]} 8. Nxd4 {[%emt 0:00:09]} O-O {[%emt 0:00:09]} 9. Qc2 {[%emt 0:11:48]} Re8 {[%emt 0:03:10]} 10. O-O-O {[%emt 0:00:49]} Nb4 {[%emt 0:01:37]} 11. Qb3 {[%emt 0:10:32]} Nxe4 {[%emt 0:18:18]} 12. Nxe4 {[%emt 0:07:33]} Rxe4 {[%emt 0:00:10]} 13. Qxb4 {[%emt 0:00:17]} c5 {[%emt 0:00:05]} 14. Qa3 {[%emt 0:00:38]} Bxd4 {[%emt 0:09:01]} 15. Bxd4 {[%emt 0:00:18]} cxd4 {[%emt 0:00:05]} 16. Bd3 {[%emt 0:11:34]} Re5 {[%emt 0:01:52]} 17. Kb1 {[%emt 0:00:05]} Be6 {[%emt 0:01:27]} 18. Rc1 {[%emt 0:00:51]} Ra5 {[%emt 0:02:22]} 19. Qb4 {[%emt 0:00:56]} b5 {[%emt 0:00:18]} 20. Rhd1 {[%emt 0:07:02]} Rb8 {[%emt 0:02:54]} 21. Qd2 {[%emt 0:01:00]} Ra4 {[%emt 0:00:20]} 22. Bc2 {[%emt 0:05:43]} Rxa2 {[%emt 0:08:57]} 23. Kxa2 {[%emt 0:06:07]} bxc4 {[%emt 0:00:05]} 24. Qxd4 {[%emt 0:01:28]} Qa5+ {[%emt 0:03:26]} 25. Kb1 {[%emt 0:00:06]} c3 {[%emt 0:00:04]} 26. b3 {[%emt 0:00:08]} Bxb3 {[%emt 0:00:22]} 27. Bxb3 {[%emt 0:00:14]} Rxb3+ {[%emt 0:00:05]} 28. Kc2 {[%emt 0:00:05]} Qa2+ {[%emt 0:00:17]} 29. Kd3 {[%emt 0:00:06]} c2+ {[%emt 0:00:05]} 30. Ke2 {[%emt 0:00:22]} cxd1=Q+ {[%emt 0:02:01]} 31. Kxd1 {[%emt 0:00:06]} Qa6 {[%emt 0:00:51]} 32. Ke1 {[%emt 0:00:16]} Rb5 {[%emt 0:03:25]} 33. f3 {[%emt 0:00:18]} Rb8 {[%emt 0:08:07]} 34. Ra1 {[%emt 0:06:22]} Qb6 {[%emt 0:02:25]} 0-1

[Event "26th Hit Open-A 2022"]
[Site "Nova Gorica"]
[Date "2022.09.15"]
[Round "1.2"]
[White "Goroshkov, Maksym"]
[Black "Sonis, Francesco"]
[Result "1/2-1/2"]
[ECO "B22"]
[WhiteElo "2315"]
[BlackElo "2542"]
[Annotator "ChessBase"]
[PlyCount "119"]
[EventDate "2022.09.16"]
[EventType "swiss"]
[EventCountry "SLO"]
[SourceTitle "playchess.com"]
[Source "ChessBase"]
[SourceQuality "1"]
[TimeControl "5400+30"]

1. e4 {[%emt 0:00:08]} c5 {[%emt 0:00:13]} 2. c3 {[%emt 0:00:21]} Nf6 {[%emt 0:00:07]} 3. e5 {[%emt 0:00:33]} Nd5 {[%emt 0:00:06]} 4. Bc4 {[%emt 0:00:15]} Nb6 {[%emt 0:00:29]} 5. Bb3 {[%emt 0:00:06]} d5 {[%emt 0:01:04]} 6. exd6 {[%emt 0:00:22]} Qxd6 {[%emt 0:00:08]} 7. d4 {[%emt 0:00:08]} cxd4 {[%emt 0:00:44]} 8. cxd4 {[%emt 0:00:16]} Be6 {[%emt 0:05:16]} 9. Ne2 {[%emt 0:09:59]} Bxb3 {[%emt 0:04:37]} 10. Qxb3 {[%emt 0:01:16]} Nc6 {[%emt 0:01:18]} 11. Nbc3 {[%emt 0:04:04]} e6 {[%emt 0:01:29]} 12. O-O {[%emt 0:02:43]} Be7 {[%emt 0:00:59]} 13. Rd1 {[%emt 0:01:15]} Rd8 {[%emt 0:09:17]} 14. Nb5 {[%emt 0:03:43]} Qb4 {[%emt 0:00:13]} 15. Qxb4 {[%emt 0:02:04]} Bxb4 {[%emt 0:00:08]} 16. a3 {[%emt 0:00:45]} Be7 {[%emt 0:01:00]} 17. Nc7+ {[%emt 0:02:02]} Kd7 {[%emt 0:03:10]} 18. Nb5 {[%emt 0:00:12]} Kc8 {[%emt 0:08:24]} 19. Bf4 {[%emt 0:02:23]} a6 {[%emt 0:00:34]} 20. Nbc3 {[%emt 0:05:45]} Rd7 {[%emt 0:04:12]} 21. Rac1 {[%emt 0:01:09]} Rhd8 {[%emt 0:04:33]} 22. Bg3 {[%emt 0:03:46]} Bd6 {[%emt 0:05:36]} 23. Bh4 {[%emt 0:03:21]} f6 {[%emt 0:01:45]} 24. f3 {[%emt 0:00:21]} Bc7 {[%emt 0:03:26]} 25. Bf2 {[%emt 0:04:11]} Nd5 {[%emt 0:03:07]} 26. Na4 {[%emt 0:01:11]} Re7 {[%emt 0:14:07]} 27. Nc5 {[%emt 0:02:50]} Nb8 {[%emt 0:00:52]} 28. Bg3 {[%emt 0:02:13]} b6 {[%emt 0:00:48]} 29. Bxc7 {[%emt 0:01:43]} Nxc7 {[%emt 0:00:05]} 30. Ne4 {[%emt 0:00:25]} Kb7 {[%emt 0:00:31]} 31. Rc4 {[%emt 0:02:19]} Nd5 {[%emt 0:02:16]} 32. Rdc1 {[%emt 0:01:19]} Rc7 {[%emt 0:00:51]} 33. Rxc7+ {[%emt 0:01:54]} Nxc7 {[%emt 0:00:06]} 34. a4 {[%emt 0:01:21]} Nc6 {[%emt 0:00:58]} 35. Rc4 {[%emt 0:00:17]} b5 {[%emt 0:02:11]} 36. Nc5+ {[%emt 0:02:18]} Kb6 {[%emt 0:00:09]} 37. Rc1 {[%emt 0:00:52]} Nxd4 {[%emt 0:03:51]} 38. a5+ {[%emt 0:00:15]} Ka7 {[%emt 0:00:01]} 39. Nxd4 {[%emt 0:00:14]} Rxd4 {[%emt 0:00:05]} 40. Nb3 {[%emt 0:00:03]} Rd7 {[%emt 0:00:03]} 41. Rc6 {[%emt 0:00:08]} Kb7 {[%emt 0:01:13]} 42. Rb6+ {[%emt 0:00:11]} Kc8 {[%emt 0:00:05]} 43. Nc5 {[%emt 0:00:27]} Rd1+ {[%emt 0:00:09]} 44. Kf2 {[%emt 0:00:04]} Rd2+ {[%emt 0:00:27]} 45. Kg3 {[%emt 0:00:17]} Rxb2 {[%emt 0:00:38]} 46. Nxe6 {[%emt 0:01:33]} Nd5 {[%emt 0:10:17]} 47. Rxa6 {[%emt 0:00:14]} g5 {[%emt 0:00:05]} 48. Rd6 {[%emt 0:02:11]} Ne3 {[%emt 0:00:09]} 49. Rd3 {[%emt 0:00:16]} Nf5+ {[%emt 0:01:44]} 50. Kg4 {[%emt 0:00:46]} Nh6+ {[%emt 0:00:09]} 51. Kh3 {[%emt 0:01:13]} Nf7 {[%emt 0:01:05]} 52. Rc3+ {[%emt 0:02:19]} Kb8 {[%emt 0:01:30]} 53. Rc6 {[%emt 0:02:40]} Ne5 {[%emt 0:01:31]} 54. Rb6+ {[%emt 0:00:23]} Kc8 {[%emt 0:00:09]} 55. Nd4 {[%emt 0:01:05]} Nd3 {[%emt 0:00:49]} 56. Nxb5 {[%emt 0:03:42]} Ra2 {[%emt 0:02:01]} 57. Rc6+ {[%emt 0:05:12]} Kb8 {[%emt 0:00:16]} 58. Rb6+ {[%emt 0:00:14]} Kc8 {[%emt 0:00:03]} 59. Rc6+ {[%emt 0:11:56]} Kb8 {[%emt 0:00:04]} 60. Rb6+ {[%emt 0:02:42]} 1/2-1/2

[Event "26th Hit Open-A 2022"]
[Site "Nova Gorica"]
[Date "2022.09.15"]
[Round "1.3"]
[White "Thybo, Jesper Sondergaard"]
[Black "Sharan, Rao"]
[Result "1-0"]
[ECO "B10"]
[WhiteElo "2516"]
[BlackElo "2312"]
[Annotator "ChessBase"]
[PlyCount "93"]
[EventDate "2022.09.16"]
[EventType "swiss"]
[EventCountry "SLO"]
[SourceTitle "playchess.com"]
[Source "ChessBase"]
[SourceQuality "1"]
[TimeControl "5400+30"]

1. e4 {[%emt 0:00:04]} c6 {[%emt 0:00:07]} 2. Nf3 {[%emt 0:02:10]} d5 {[%emt 0:00:05]} 3. d3 {[%emt 0:00:06]} Bg4 {[%emt 0:01:57]} 4. Nbd2 {[%emt 0:02:10]} e6 {[%emt 0:01:46]} 5. h3 {[%emt 0:02:16]} Bxf3 {[%emt 0:00:44]} 6. Nxf3 {[%emt 0:02:53]} dxe4 {[%emt 0:09:11]} 7. dxe4 {[%emt 0:00:11]} Qxd1+ {[%emt 0:00:05]} 8. Kxd1 {[%emt 0:00:14]} Nf6 {[%emt 0:00:16]} 9. Bd3 {[%emt 0:10:41]} Nbd7 {[%emt 0:04:27]} 10. e5 {[%emt 0:10:16]} Nd5 {[%emt 0:00:07]} 11. c4 {[%emt 0:00:24]} N5b6 {[%emt 0:07:07]} 12. b3 {[%emt 0:01:42]} f6 {[%emt 0:02:15]} 13. Bb2 {[%emt 0:04:47]} Be7 {[%emt 0:02:18]} 14. Kc2 {[%emt 0:04:00]} Kf7 {[%emt 0:01:27]} 15. Rae1 {[%emt 0:03:03]} a5 {[%emt 0:07:10]} 16. exf6 {[%emt 0:02:15]} gxf6 {[%emt 0:02:19]} 17. Nd4 {[%emt 0:02:51]} e5 {[%emt 0:08:08]} 18. Nf5 {[%emt 0:01:05]} Bc5 {[%emt 0:02:23]} 19. f4 {[%emt 0:04:12]} exf4 {[%emt 0:01:08]} 20. Rhf1 {[%emt 0:02:10]} Rae8 {[%emt 0:01:18]} 21. Rxe8 {[%emt 0:00:31]} Rxe8 {[%emt 0:00:15]} 22. Rxf4 {[%emt 0:00:10]} Ne5 {[%emt 0:01:23]} 23. Be4 {[%emt 0:09:48]} Ng6 {[%emt 0:08:12]} 24. Rg4 {[%emt 0:00:07]} Nd7 {[%emt 0:03:16]} 25. Nh6+ {[%emt 0:06:57]} Kg7 {[%emt 0:00:26]} 26. Nf5+ {[%emt 0:00:03]} Kf7 {[%emt 0:00:09]} 27. h4 {[%emt 0:02:22]} Bf8 {[%emt 0:00:40]} 28. h5 {[%emt 0:02:53]} Nge5 {[%emt 0:01:07]} 29. Rf4 {[%emt 0:00:52]} Nc5 {[%emt 0:01:27]} 30. Ng3 {[%emt 0:03:12]} Bh6 {[%emt 0:05:40]} 31. Rf5 {[%emt 0:00:14]} Ke6 {[%emt 0:09:38]} 32. Rf2 {[%emt 0:02:48]} Nxe4 {[%emt 0:04:12]} 33. Nxe4 {[%emt 0:00:10]} Ng4 {[%emt 0:00:09]} 34. Re2 {[%emt 0:04:28]} Ne3+ {[%emt 0:01:28]} 35. Kd3 {[%emt 0:01:18]} Rd8+ {[%emt 0:09:35]} 36. Bd4 {[%emt 0:01:05]} b5 {[%emt 0:01:06]} 37. cxb5 {[%emt 0:10:17]} cxb5 {[%emt 0:00:05]} 38. Nxf6 {[%emt 0:00:10]} Kf7 {[%emt 0:03:15]} 39. Rxe3 {[%emt 0:00:15]} Bxe3 {[%emt 0:00:06]} 40. Kxe3 {[%emt 0:00:02]} Kg7 {[%emt 0:01:15]} 41. g4 {[%emt 0:00:47]} Kh6 {[%emt 0:00:31]} 42. Ne4 {[%emt 0:01:02]} a4 {[%emt 0:01:10]} 43. Bf6 {[%emt 0:00:41]} Re8 {[%emt 0:01:51]} 44. Kf4 {[%emt 0:00:44]} Re6 {[%emt 0:00:01]} 45. Kf5 {[%emt 0:00:44]} Rc6 {[%emt 0:00:40]} 46. Ng3 {[%emt 0:01:22]} Rc5+ {[%emt 0:00:45]} 47. Kf4 {[%emt 0:00:21]} 1-0

[Event "26th Hit Open-A 2022"]
[Site "Nova Gorica"]
[Date "2022.09.15"]
[Round "1.4"]
[White "Marn, Jan"]
[Black "Seo, Jung Min"]
[Result "0-1"]
[ECO "B07"]
[WhiteElo "2307"]
[BlackElo "2516"]
[Annotator "ChessBase"]
[PlyCount "116"]
[EventDate "2022.09.16"]
[EventType "swiss"]
[EventCountry "SLO"]
[SourceTitle "playchess.com"]
[Source "ChessBase"]
[SourceQuality "1"]
[TimeControl "5400+30"]

1. d4 {[%emt 0:00:03]} d6 {[%emt 0:00:09]} 2. e4 {[%emt 0:03:33]} Nf6 {[%emt 0:01:20]} 3. Nc3 {[%emt 0:00:08]} g6 {[%emt 0:01:03]} 4. g3 {[%emt 0:01:28]} Bg7 {[%emt 0:00:22]} 5. Bg2 {[%emt 0:00:05]} O-O {[%emt 0:01:24]} 6. Nge2 {[%emt 0:00:07]} e5 {[%emt 0:00:51]} 7. O-O {[%emt 0:07:13]} Nc6 {[%emt 0:01:48]} 8. Re1 {[%emt 0:03:24]} Re8 {[%emt 0:03:13]} 9. d5 {[%emt 0:11:00]} Ne7 {[%emt 0:02:39]} 10. h3 {[%emt 0:01:19]} c6 {[%emt 0:02:01]} 11. Be3 {[%emt 0:03:23]} cxd5 {[%emt 0:04:47]} 12. exd5 {[%emt 0:00:09]} Nf5 {[%emt 0:01:44]} 13. Bg5 {[%emt 0:00:12]} h6 {[%emt 0:00:23]} 14. Bxf6 {[%emt 0:00:06]} Bxf6 {[%emt 0:01:03]} 15. Ne4 {[%emt 0:00:13]} Bg7 {[%emt 0:01:24]} 16. c4 {[%emt 0:03:26]} a5 {[%emt 0:09:25]} 17. c5 {[%emt 0:12:51]} dxc5 {[%emt 0:00:49]} 18. Nxc5 {[%emt 0:00:06]} Nd6 {[%emt 0:04:06]} 19. Nc3 {[%emt 0:00:58]} Kh8 {[%emt 0:02:58]} 20. Qa4 {[%emt 0:19:45]} b6 {[%emt 0:11:58]} 21. N5e4 {[%emt 0:05:33]} Nxe4 {[%emt 0:00:43]} 22. Nxe4 {[%emt 0:00:10]} Bd7 {[%emt 0:08:37]} 23. Qb3 {[%emt 0:00:26]} Rf8 {[%emt 0:01:24]} 24. Nd6 {[%emt 0:08:07]} a4 {[%emt 0:03:32]} 25. Qb4 {[%emt 0:00:58]} f5 {[%emt 0:03:17]} 26. Nc4 {[%emt 0:04:20]} e4 {[%emt 0:00:27]} 27. Qxb6 {[%emt 0:00:09]} a3 {[%emt 0:01:20]} 28. Rab1 {[%emt 0:03:47]} axb2 {[%emt 0:01:02]} 29. Qxd8 {[%emt 0:00:43]} Rfxd8 {[%emt 0:00:05]} 30. Nxb2 {[%emt 0:00:06]} Rxa2 {[%emt 0:00:04]} 31. Nc4 {[%emt 0:00:06]} Bd4 {[%emt 0:00:44]} 32. Ne3 {[%emt 0:00:38]} Ba4 {[%emt 0:02:53]} 33. Bf1 {[%emt 0:01:43]} Rd2 {[%emt 0:01:17]} 34. Rb4 {[%emt 0:04:10]} Be8 {[%emt 0:00:43]} 35. Re2 {[%emt 0:02:32]} Bxe3 {[%emt 0:00:23]} 36. Rxe3 {[%emt 0:00:13]} R2xd5 {[%emt 0:00:17]} 37. Ra3 {[%emt 0:00:46]} Kg7 {[%emt 0:01:28]} 38. Ra7+ {[%emt 0:00:30]} R8d7 {[%emt 0:00:45]} 39. Rxd7+ {[%emt 0:00:41]} Rxd7 {[%emt 0:00:41]} 40. h4 {[%emt 0:02:01]} Re7 {[%emt 0:00:45]} 41. Bc4 {[%emt 0:01:16]} g5 {[%emt 0:00:59]} 42. hxg5 {[%emt 0:00:04]} hxg5 {[%emt 0:00:03]} 43. Bd5 {[%emt 0:00:48]} Re5 {[%emt 0:00:04]} 44. Bb7 {[%emt 0:00:19]} Bh5 {[%emt 0:00:13]} 45. Rb1 {[%emt 0:02:44]} Bf3 {[%emt 0:00:48]} 46. Ba6 {[%emt 0:00:14]} f4 {[%emt 0:00:39]} 47. Rb5 {[%emt 0:00:50]} Re8 {[%emt 0:01:40]} 48. Rb7+ {[%emt 0:00:26]} Kh6 {[%emt 0:00:39]} 49. Rb2 {[%emt 0:00:38]} Ra8 {[%emt 0:00:26]} 50. Rb6+ {[%emt 0:00:23]} Kg7 {[%emt 0:00:04]} 51. Kf1 {[%emt 0:00:25]} Rh8 {[%emt 0:00:51]} 52. Ke1 {[%emt 0:00:08]} Rh1+ {[%emt 0:00:10]} 53. Kd2 {[%emt 0:00:17]} e3+ {[%emt 0:00:31]} 54. fxe3 {[%emt 0:01:08]} fxg3 {[%emt 0:00:05]} 55. Bb7 {[%emt 0:00:24]} g2 {[%emt 0:02:39]} 56. Bxf3 {[%emt 0:00:07]} g1=Q {[%emt 0:00:03]} 57. Bxh1 {[%emt 0:00:07]} Qxh1 {[%emt 0:00:04]} 58. Rb4 {[%emt 0:00:06]} Kg6 {[%emt 0:00:06]} 0-1

[Event "26th Hit Open-A 2022"]
[Site "Nova Gorica"]
[Date "2022.09.15"]
[Round "1.5"]
[White "Beliavsky, Alexander G"]
[Black "Mostbauer, Florian"]
[Result "1/2-1/2"]
[ECO "D78"]
[WhiteElo "2505"]
[BlackElo "2295"]
[Annotator "ChessBase"]
[PlyCount "220"]
[EventDate "2022.09.16"]
[EventType "swiss"]
[EventCountry "SLO"]
[SourceTitle "playchess.com"]
[Source "ChessBase"]
[SourceQuality "1"]
[TimeControl "5400+30"]

1. d4 {[%emt 0:00:05]} d5 {[%emt 0:00:12]} 2. c4 {[%emt 0:00:07]} c6 {[%emt 0:00:16]} 3. Nf3 {[%emt 0:00:11]} Nf6 {[%emt 0:00:11]} 4. g3 {[%emt 0:00:09]} g6 {[%emt 0:01:56]} 5. Bg2 {[%emt 0:04:09]} Bg7 {[%emt 0:00:13]} 6. O-O {[%emt 0:00:51]} O-O {[%emt 0:00:10]} 7. Qb3 {[%emt 0:04:13]} dxc4 {[%emt 0:10:23]} 8. Qxc4 {[%emt 0:00:06]} Na6 {[%emt 0:01:03]} 9. Nc3 {[%emt 0:06:38]} Bf5 {[%emt 0:05:55]} 10. Ne5 {[%emt 0:07:58]} Rc8 {[%emt 0:09:35]} 11. e4 {[%emt 0:04:39]} Be6 {[%emt 0:01:47]} 12. Qa4 {[%emt 0:00:08]} Nd7 {[%emt 0:03:37]} 13. Nxd7 {[%emt 0:05:16]} Qxd7 {[%emt 0:00:34]} 14. Be3 {[%emt 0:01:44]} c5 {[%emt 0:08:42]} 15. Qxd7 {[%emt 0:05:14]} Bxd7 {[%emt 0:00:08]} 16. Rfd1 {[%emt 0:00:39]} cxd4 {[%emt 0:07:49]} 17. Bxd4 {[%emt 0:00:05]} Bg4 {[%emt 0:08:35]} 18. f3 {[%emt 0:01:53]} Bxd4+ {[%emt 0:05:57]} 19. Rxd4 {[%emt 0:00:05]} Be6 {[%emt 0:00:08]} 20. Rad1 {[%emt 0:00:41]} Nb8 {[%emt 0:03:45]} 21. Rb4 {[%emt 0:07:54]} b6 {[%emt 0:00:40]} 22. Ra4 {[%emt 0:00:08]} a6 {[%emt 0:04:52]} 23. Nd5 {[%emt 0:06:57]} Bxd5 {[%emt 0:00:39]} 24. exd5 {[%emt 0:00:19]} Rfd8 {[%emt 0:01:44]} 25. f4 {[%emt 0:02:48]} Rc2 {[%emt 0:05:03]} 26. Rb4 {[%emt 0:03:15]} Rd6 {[%emt 0:01:11]} 27. Re1 {[%emt 0:02:07]} Kf8 {[%emt 0:00:39]} 28. Rbe4 {[%emt 0:03:00]} Rxd5 {[%emt 0:04:27]} 29. Rxe7 {[%emt 0:00:33]} Rdd2 {[%emt 0:00:42]} 30. Re8+ {[%emt 0:00:08]} Kg7 {[%emt 0:00:05]} 31. Be4 {[%emt 0:00:18]} Rxb2 {[%emt 0:01:32]} 32. Rxb8 {[%emt 0:00:06]} Rxa2 {[%emt 0:04:50]} 33. Rxb6 {[%emt 0:00:50]} a5 {[%emt 0:02:04]} 34. Rbb1 {[%emt 0:05:05]} Rxh2 {[%emt 0:00:54]} 35. Ra1 {[%emt 0:00:07]} h5 {[%emt 0:01:56]} 36. Bd5 {[%emt 0:04:35]} Rxa1 {[%emt 0:02:24]} 37. Rxa1 {[%emt 0:00:04]} Rd2 {[%emt 0:00:06]} 38. Rxa5 {[%emt 0:03:39]} h4 {[%emt 0:01:23]} 39. Ba2 {[%emt 0:01:19]} f5 {[%emt 0:02:11]} 40. Ra7+ {[%emt 0:05:14]} Kh6 {[%emt 0:00:24]} 41. Bf7 {[%emt 0:00:13]} hxg3 {[%emt 0:00:57]} 42. Ra6 {[%emt 0:00:17]} Rd4 {[%emt 0:00:41]} 43. Rxg6+ {[%emt 0:01:25]} Kh7 {[%emt 0:00:06]} 44. Rxg3 {[%emt 0:00:13]} Rxf4 {[%emt 0:00:08]} 45. Bh5 {[%emt 0:00:06]} Kh6 {[%emt 0:00:19]} 46. Be2 {[%emt 0:00:41]} Re4 {[%emt 0:00:16]} 47. Kf2 {[%emt 0:00:21]} Re6 {[%emt 0:00:13]} 48. Bd3 {[%emt 0:01:04]} Rg6 {[%emt 0:00:25]} 49. Rf3 {[%emt 0:00:42]} Rf6 {[%emt 0:00:33]} 50. Ke3 {[%emt 0:00:18]} f4+ {[%emt 0:01:33]} 51. Kf2 {[%emt 0:00:39]} Kg5 {[%emt 0:00:15]} 52. Be2 {[%emt 0:00:08]} Rf5 {[%emt 0:00:32]} 53. Rh3 {[%emt 0:00:46]} Re5 {[%emt 0:00:27]} 54. Rh8 {[%emt 0:00:39]} Re7 {[%emt 0:00:26]} 55. Rh5+ {[%emt 0:00:37]} Kf6 {[%emt 0:00:07]} 56. Bd3 {[%emt 0:00:11]} Re5 {[%emt 0:00:19]} 57. Rh6+ {[%emt 0:00:21]} Ke7 {[%emt 0:00:15]} 58. Rh4 {[%emt 0:00:27]} Re3 {[%emt 0:00:41]} 59. Bf5 {[%emt 0:01:23]} Rg3 {[%emt 0:00:26]} 60. Rxf4 {[%emt 0:00:15]} Rc3 {[%emt 0:00:18]} 61. Bg4 {[%emt 0:00:14]} Ra3 {[%emt 0:00:15]} 62. Bf3 {[%emt 0:00:10]} Rc3 {[%emt 0:00:11]} 63. Kg3 {[%emt 0:00:05]} Kd6 {[%emt 0:00:17]} 64. Rd4+ {[%emt 0:01:00]} Kc5 {[%emt 0:00:14]} 65. Rd5+ {[%emt 0:00:18]} Kc4 {[%emt 0:00:10]} 66. Rf5 {[%emt 0:00:19]} Kd4 {[%emt 0:00:22]} 67. Kf4 {[%emt 0:00:13]} Rc5 {[%emt 0:00:15]} 68. Rf8 {[%emt 0:00:05]} Rc4 {[%emt 0:00:40]} 69. Be4 {[%emt 0:00:16]} Rb4 {[%emt 0:01:13]} 70. Rd8+ {[%emt 0:00:16]} Kc4 {[%emt 0:00:09]} 71. Ke5 {[%emt 0:00:40]} Rb5+ {[%emt 0:00:35]} 72. Bd5+ {[%emt 0:00:07]} Kc3 {[%emt 0:00:14]} 73. Rc8+ {[%emt 0:00:36]} Kd2 {[%emt 0:00:21]} 74. Kd4 {[%emt 0:00:21]} Rb4+ {[%emt 0:00:16]} 75. Bc4 {[%emt 0:00:04]} Rb7 {[%emt 0:00:08]} 76. Rh8 {[%emt 0:00:35]} Rd7+ {[%emt 0:02:01]} 77. Bd5 {[%emt 0:00:09]} Re7 {[%emt 0:00:14]} 78. Bc6 {[%emt 0:03:02]} Re6 {[%emt 0:00:53]} 79. Be4 {[%emt 0:00:16]} Rd6+ {[%emt 0:00:36]} 80. Bd5 {[%emt 0:00:05]} Rd7 {[%emt 0:00:07]} 81. Rh2+ {[%emt 0:00:23]} Kd1 {[%emt 0:00:45]} 82. Ke4 {[%emt 0:01:23]} Rd8 {[%emt 0:01:03]} 83. Bb3+ {[%emt 0:02:02]} Ke1 {[%emt 0:00:22]} 84. Bd5 {[%emt 0:02:52]} Kd1 {[%emt 0:00:51]} 85. Ra2 {[%emt 0:01:02]} Ke1 {[%emt 0:01:02]} 86. Rg2 {[%emt 0:00:49]} Kd1 {[%emt 0:00:48]} 87. Rh2 {[%emt 0:00:06]} Kc1 {[%emt 0:00:50]} 88. Bc4 {[%emt 0:00:42]} Rd2 {[%emt 0:00:28]} 89. Rh1+ {[%emt 0:00:07]} Kc2 {[%emt 0:00:23]} 90. Rh3 {[%emt 0:01:02]} Rd8 {[%emt 0:00:29]} 91. Bd5 {[%emt 0:00:52]} Kd2 {[%emt 0:00:48]} 92. Kd4 {[%emt 0:01:52]} Kd1 {[%emt 0:00:29]} 93. Rh2 {[%emt 0:00:41]} Rd7 {[%emt 0:00:19]} 94. Ke4 {[%emt 0:02:40]} Rd8 {[%emt 0:00:12]} 95. Bb3+ {[%emt 0:00:58]} Ke1 {[%emt 0:00:17]} 96. Ke3 {[%emt 0:00:13]} Re8+ {[%emt 0:00:10]} 97. Kd3 {[%emt 0:00:10]} Rd8+ {[%emt 0:00:23]} 98. Kc3 {[%emt 0:00:03]} Kf1 {[%emt 0:00:55]} 99. Be6 {[%emt 0:01:52]} Kg1 {[%emt 0:00:30]} 100. Ra2 {[%emt 0:00:59]} Rd6 {[%emt 0:00:18]} 101. Bf5 {[%emt 0:00:27]} Rd8 {[%emt 0:00:40]} 102. Be4 {[%emt 0:00:36]} Kf1 {[%emt 0:00:36]} 103. Bd3+ {[%emt 0:00:17]} Kg1 {[%emt 0:00:11]} 104. Kc4 {[%emt 0:00:10]} Rd6 {[%emt 0:00:31]} 105. Be4 {[%emt 0:00:46]} Rd8 {[%emt 0:00:24]} 106. Bd5 {[%emt 0:00:06]} Rf8 {[%emt 0:00:58]} 107. Kd4 {[%emt 0:01:18]} Rf2 {[%emt 0:00:31]} 108. Ra1+ {[%emt 0:00:04]} Rf1 {[%emt 0:00:12]} 109. Ra8 {[%emt 0:00:14]} Rd1+ {[%emt 0:00:11]} 110. Ke4 {[%emt 0:00:09]} Kf2 {[%emt 0:00:21]} 1/2-1/2